bitfinex/quotes_SOLUSD_20250609
["timestamp","ask_amount","ask_price","bid_price","bid_amount"]
[1749435046019,21.64034875,151.96,151.91,12.45526744]
[1749435046202,12.45526744,151.95,151.92,2.45937136]
[1749435046402,12.45526744,151.95,151.93,2.45933335]
[1749435046720,12.45526744,151.95,151.94,2.45933305]
[1749435046921,12.45526744,151.95,151.94,2.45932089]
[1749435047527,12.45526744,151.95,151.91,12.45526744]
[1749435047705,12.45526744,151.94,151.92,2.45955308]
[1749435047902,12.45526744,151.94,151.9,59.21838498]
[1749435048107,12.45526744,151.94,151.91,2.45968798]
[1749435048317,12.45526744,151.94,151.92,2.45969902]
[1749435048616,12.45526744,151.94,151.9,59.21838498]
[1749435048809,12.45526744,151.93,151.91,2.45983455]
[1749435049011,12.45526744,151.93,151.9,40.18]
[1749435049012,12.45526744,151.93,151.92,2.45983455]
[1749435049724,12.45526744,151.93,151.91,2.45983455]
[1749435050011,12.45526744,151.93,151.92,2.4602989]
[1749435050402,12.45526744,151.93,151.9,40.18]
[1749435050716,12.45526744,151.95,151.91,9.04291322]
[1749435050923,17.35603199,151.95,151.92,2.46032753]
[1749435051094,17.35603199,151.95,151.93,2.46032753]
[1749435051411,12.45526744,151.95,151.91,19.03785313]
[1749435053694,12.45526744,151.95,151.9,59.21839381]
[1749435054003,12.45526744,151.93,151.88,6.58414537]
[1749435054209,12.45526744,151.92,151.88,59.21941281]
[1749435054410,12.45526744,151.92,151.88,19.03941281]
[1749435056302,12.45526744,151.93,151.88,19.03941281]
[1749435056619,17.35314546,151.94,151.9,12.45526744]
[1749435056920,12.45526744,151.94,151.9,19.03822929]
[1749435058026,12.45526744,151.94,151.9,6.58296185]
[1749435058799,12.45526744,151.93,151.89,19.0388147]
[1749435059319,12.45526744,151.93,151.89,6.58354726]
[1749435060326,12.45526744,151.93,151.88,19.03926084]
[1749435060542,19.03737446,151.93,151.88,19.03926084]
[1749435060832,12.45526744,151.93,151.88,6.5839934]
[1749435061145,12.45526744,151.93,151.88,19.03926084]
[1749435062405,12.45526744,151.94,151.89,12.45526744]
[1749435062724,12.45526744,151.95,151.91,12.45526744]
[1749435062927,12.45526744,151.94,151.9,12.45526744]
[1749435063231,12.45526744,151.94,151.89,12.45526744]
[1749435063446,12.45526744,151.92,151.88,6.5839934]
[1749435063727,12.45526744,151.91,151.87,53.71272091]
[1749435064230,12.45526744,151.91,151.87,27.71272091]
[1749435065529,6.58271449,151.92,151.87,27.71272091]
[1749435065724,12.45526744,151.91,151.87,27.71272091]
[1749435066117,19.03839185,151.91,151.87,27.71272091]
[1749435067510,19.03839185,151.91,151.88,2.46066057]
[1749435067713,12.45526744,151.9,151.89,2.46066026]
[1749435068409,12.45526744,151.9,151.89,2.46073194]
[1749435068812,12.45526744,151.9,151.87,27.71272091]
[1749435069012,12.45526744,151.9,151.88,2.46073254]
[1749435069229,12.45526744,151.9,151.89,2.46387998]
[1749435069431,12.45526744,151.9,151.89,2.46385485]
[1749435069835,12.45526744,151.9,151.89,2.46378036]
[1749435070337,12.45526744,151.9,151.87,34.29729068]
[1749435070522,12.45526744,151.9,151.88,2.46388029]
[1749435070722,12.45526744,151.9,151.87,34.29729068]
[1749435070723,12.45526744,151.9,151.89,2.46387998]
[1749435071033,12.45526744,151.9,151.89,2.46387968]
[1749435071435,12.45526744,151.9,151.89,2.46365828]
[1749435071622,12.45526744,151.9,151.87,27.71272091]
[1749435071817,12.45526744,151.9,151.88,2.4636798]
[1749435072037,12.45526744,151.9,151.89,2.46358019]
[1749435072215,17.35544842,151.91,151.89,2.46358019]
[1749435072408,12.45526744,151.91,151.9,2.46358019]
[1749435072614,17.35541026,151.91,151.9,2.46358019]
[1749435072819,23.93825536,151.91,151.87,27.71272091]
[1749435073028,19.03811254,151.91,151.88,2.46240578]
[1749435073227,19.03811254,151.91,151.89,2.46245541]
[1749435073433,19.03811254,151.91,151.87,27.71272091]
[1749435073643,19.03811254,151.91,151.88,2.46245541]
[1749435073821,19.03811254,151.91,151.87,27.71272091]
[1749435074025,19.03811254,151.91,151.88,2.46252986]
[1749435074347,4.899514,151.93,151.9,12.45526744]
[1749435074635,12.45526744,151.95,151.91,14.91693177]
[1749435074813,17.35553035,151.94,151.9,12.45526744]
[1749435075015,12.45526744,151.94,151.91,2.46156421]
[1749435075230,12.45526744,151.94,151.9,12.45526744]
[1749435075423,12.45526744,151.93,151.89,12.45526744]
[1749435075630,12.45526744,151.93,151.9,2.46160134]
[1749435075819,12.45526744,151.94,151.91,2.46160134]
[1749435076021,12.45526744,151.94,151.92,2.46160134]
[1749435076221,12.45526744,151.94,151.9,19.03843719]
[1749435076526,12.45526744,151.94,151.91,2.46207956]
[1749435076846,12.45526744,151.94,151.9,19.03843719]
[1749435077011,12.45526744,151.94,151.91,2.46186439]
[1749435077212,12.45526744,151.93,151.92,2.46186409]
[1749435077640,17.35392841,151.93,151.89,19.03880231]
[1749435078023,17.35392841,151.93,151.89,6.58353487]
[1749435078446,17.35392841,151.93,151.89,19.03880231]
[1749435078625,12.45526744,151.93,151.89,19.03880231]
[1749435079251,224.2319,151.97,151.9,12.45526744]
[1749435079252,17.35371032,151.94,151.9,12.45526744]
[1749435079545,12.45526744,151.94,151.9,12.45526744]
[1749435080544,12.45526744,151.93,151.89,19.03880231]
[1749435084451,4.89794438,151.94,151.92,12.45526744]
[1749435084748,19.0352325,151.98,151.93,12.45526744]
[1749435084953,4.89850767,151.97,151.93,19.03723393]
[1749435085125,4.89859102,151.97,151.93,19.03723393]
[1749435085328,12.45526744,151.98,151.93,19.03723393]
[1749435085527,17.35346715,151.98,151.93,19.03723393]
[1749435085722,17.35346715,151.98,151.94,12.45526744]
[1749435086647,17.35233236,151.98,151.94,19.03657216]
[1749435087244,12.45526744,151.98,151.94,19.03657216]
[1749435087444,17.35123661,151.98,151.94,19.03657216]
[1749435087954,22.81526744,152.0,151.95,12.45526744]
[1749435088160,15.25624816,152.0,151.96,12.45526744]
[1749435088326,4.89624816,152.0,151.96,12.45526744]
[1749435088643,1.6199,152.01,151.98,12.45526744]
[1749435088644,4.89624816,152.01,151.98,12.45526744]
[1749435088842,17.3515156,152.01,151.97,12.45526744]
[1749435089348,12.45526744,152.01,151.97,12.45526744]
[1749435089742,4.89624816,152.02,151.97,19.03527146]
[1749435089944,4.89624816,152.02,151.98,12.45526744]
[1749435090324,17.3515156,152.02,151.98,12.45526744]
[1749435091041,4.89624816,152.02,151.99,12.45526744]
[1749435091348,29.39265147,152.04,151.99,12.45526744]
[1749435091748,10.36,152.04,152.01,12.45526744]
[1749435091926,4.89624816,152.05,152.02,12.45526744]
[1749435092256,12.45526744,152.06,152.02,12.45526744]
[1749435093022,17.3515156,152.07,152.03,12.45526744]
[1749435093225,163.03560857,152.08,152.04,12.45526744]
[1749435093455,146.1,152.08,152.04,12.45526744]
[1749435093675,158.55526744,152.08,152.04,12.45526744]
[1749435094630,146.1,152.08,152.04,12.45526744]
[1749435094847,146.1,152.08,152.05,12.45526744]
[1749435095053,146.1,152.08,152.06,12.45526744]
[1749435095232,12.45526744,152.1,152.06,12.45526744]
[1749435095550,19.02994539,152.1,152.06,12.45526744]
[1749435097158,6.57418973,152.11,152.06,12.45526744]
[1749435097334,12.45526744,152.1,152.06,12.45526744]
[1749435097735,19.02945717,152.11,152.06,12.45526744]
[1749435099363,19.02945717,152.11,152.05,6.57669808]
[1749435099364,12.45526744,152.09,152.05,12.45526744]
[1749435102548,12.45526744,152.1,152.05,19.03199269]
[1749435103053,12.45526744,152.1,152.05,12.45526744]
[1749435103971,19.03013342,152.1,152.05,12.45526744]
[1749435104474,19.03013342,152.1,152.05,19.03202957]
[1749435105477,12.45526744,152.09,152.04,46.73716361]
[1749435105676,12.45526744,152.09,152.05,12.45526744]
[1749435106740,12.45526744,152.1,152.06,12.45526744]
[1749435109148,19.03006895,152.1,152.06,12.45526744]
[1749435109348,19.03006895,152.1,152.05,12.45526744]
[1749435109646,19.03006895,152.1,152.05,19.0320091]
[1749435111573,19.03006895,152.1,152.05,12.45526744]
[1749435112270,19.03006895,152.1,152.05,19.032002]
[1749435115574,19.03006895,152.1,152.05,12.45526744]
[1749435115742,12.45526744,152.09,152.05,12.45526744]
[1749435117471,19.03006895,152.1,152.06,12.45526744]
[1749435118245,22.81526744,152.12,152.08,12.45526744]
[1749435118588,12.45526744,152.13,152.08,12.45526744]
[1749435118755,19.02872104,152.13,152.08,19.03063413]
[1749435118953,19.02872104,152.13,152.08,12.45526744]
[1749435119773,19.02872104,152.13,152.08,19.03062805]
[1749435120273,12.45526744,152.13,152.08,19.03062805]
[1749435120474,19.02865304,152.13,152.08,19.03062805]
[1749435120876,6.57297957,152.14,152.08,19.03062805]
[1749435121089,146.1,152.15,152.11,12.45526744]
[1749435121256,158.55526744,152.15,152.1,12.45526744]
[1749435122167,146.1,152.15,152.1,12.45526744]
[1749435122474,165.12773202,152.15,152.1,12.45526744]
[1749435123177,146.1,152.15,152.12,12.45526744]
[1749435123487,10.36,152.2,152.14,12.45526744]
[1749435123669,12.45526744,152.19,152.14,12.45526744]
[1749435124068,1.6374,152.21,152.15,12.45526744]
[1749435124377,12.45526744,152.2,152.15,12.45526744]
[1749435124947,19.02568617,152.2,152.15,12.45526744]
[1749435125152,12.45526744,152.18,152.14,12.45526744]
[1749435125784,12.45526744,152.19,152.14,12.45526744]
[1749435126278,12.45526744,152.19,152.14,19.02812452]
[1749435127580,19.02613306,152.19,152.14,19.02812452]
[1749435127959,19.02613306,152.19,152.14,12.45526744]
[1749435128177,12.45526744,152.18,152.14,12.45526744]
[1749435128979,12.45526744,152.18,152.14,19.02813903]
[1749435129171,12.45526744,152.18,152.14,12.45526744]
[1749435129880,19.02659684,152.18,152.14,12.45526744]
[1749435130078,19.02659684,152.18,152.13,72.69316585]
[1749435130384,19.02659684,152.18,152.14,12.45526744]
[1749435130579,12.45526744,152.18,152.14,12.45526744]
[1749435131384,12.45526744,152.19,152.14,12.45526744]
[1749435131583,12.45526744,152.17,152.12,12.45526744]
[1749435131758,12.45526744,152.15,152.11,12.45526744]
[1749435131962,12.45526744,152.15,152.11,38.45526744]
[1749435132174,12.45526744,152.15,152.11,12.45526744]
[1749435132378,12.45526744,152.16,152.11,12.45526744]
[1749435132557,12.45526744,152.16,152.12,26.0]
[1749435133388,19.02770717,152.16,152.12,26.0]
[1749435136480,19.02770717,152.16,152.12,38.45526744]
[1749435140275,6.57243973,152.16,152.12,38.45526744]
[1749435141195,12.45526744,152.18,152.13,12.45526744]
[1749435141391,19.02568251,152.2,152.15,12.45526744]
[1749435142368,12.45526744,152.2,152.15,19.02741964]
[1749435142884,1.6374,152.21,152.15,19.02741964]
[1749435143089,12.45526744,152.2,152.15,19.02741964]
[1749435143279,20.66265496,152.21,152.16,12.45526744]
[1749435143487,12.45526744,152.2,152.15,19.02741964]
[1749435144391,19.02567497,152.2,152.15,19.02741964]
[1749435145071,19.02567497,152.2,152.15,12.45526744]
[1749435145267,6.56984146,152.22,152.16,12.45526744]
[1749435145472,12.45526744,152.21,152.17,12.45526744]
[1749435145775,12.45526744,152.21,152.16,12.45526744]
[1749435146298,19.02540057,152.21,152.16,12.45526744]
[1749435148189,19.02540057,152.21,152.16,19.02721609]
[1749435148698,19.02540057,152.21,152.16,12.45526744]
[1749435149279,19.02540057,152.21,152.16,19.02719477]
[1749435149486,19.02540057,152.21,152.17,12.45526744]
[1749435149881,12.45526744,152.21,152.17,12.45526744]
[1749435150398,12.45526744,152.21,152.16,19.02719477]
[1749435150585,19.0252018,152.21,152.16,19.02719477]
[1749435150788,19.0252018,152.21,152.16,12.45526744]
[1749435151296,6.56993436,152.21,152.16,19.02717307]
[1749435151495,12.45526744,152.22,152.17,12.45526744]
[1749435152602,6.56911772,152.23,152.17,19.02674868]
[1749435152983,6.56911772,152.23,152.18,12.45526744]
[1749435153181,19.02438516,152.23,152.18,12.45526744]
[1749435153778,156.46,152.24,152.18,19.02623037]
[1749435153982,12.45526744,152.24,152.19,12.45526744]
[1749435154798,12.45526744,152.23,152.18,19.02623037]
[1749435155898,12.45526744,152.24,152.19,12.59742901]
[1749435156402,8.14830849,152.25,152.19,12.59742901]
[1749435156605,12.45526744,152.24,152.19,12.59742901]
[1749435156899,12.45526744,152.24,152.19,19.16784891]
[1749435157100,8.14830849,152.25,152.19,19.16784891]
[1749435157311,12.45526744,152.24,152.19,19.16784891]
[1749435157908,19.0240999,152.24,152.19,19.16784891]
[1749435158083,12.45526744,152.23,152.19,19.16784891]
[1749435158832,22.98246765,152.29,152.21,12.45526744]
[1749435159030,22.98246765,152.29,152.16,14.02186744]
[1749435159031,12.45526744,152.24,152.16,1.5666]
[1749435159308,12.45526744,152.22,152.19,26.0]
[1749435159504,12.45526744,152.23,152.19,38.45526744]
[1749435159710,12.45526744,152.25,152.2,12.45526744]
[1749435160015,19.02357226,152.25,152.2,12.45526744]
[1749435160396,12.45526744,152.24,152.19,38.45526744]
[1749435160590,12.45526744,152.23,152.19,38.45526744]
[1749435161189,12.45526744,152.23,152.19,26.0]
[1749435161410,12.45526744,152.23,152.19,32.57067729]
[1749435161795,12.45526744,152.23,152.19,26.0]
[1749435162104,19.02429374,152.23,152.19,26.0]
[1749435162811,19.02388009,152.24,152.19,45.02588432]
[1749435164395,6.56814449,152.25,152.2,12.45526744]
[1749435164603,12.45526744,152.24,152.19,45.02588432]
[1749435165208,12.45526744,152.23,152.19,26.0]
[1749435165791,12.45526744,152.23,152.19,32.57070039]
[1749435166901,6.56814449,152.25,152.19,45.02596783]
[1749435167101,12.45526744,152.23,152.19,45.02596783]
[1749435167283,6.56814449,152.25,152.19,45.02596783]
[1749435167485,12.45526744,152.24,152.19,45.02596783]
[1749435168990,12.45526744,152.24,152.19,32.57070039]
[1749435169198,12.45526744,152.23,152.19,32.57070039]
[1749435170519,6.56814449,152.25,152.19,32.57070039]
[1749435170717,12.45526744,152.23,152.19,32.57070039]
[1749435171813,12.45526744,152.23,152.19,45.02596783]
[1749435172112,6.56733677,152.27,152.22,12.45526744]
[1749435172319,19.02260421,152.27,152.22,12.45526744]
[1749435172529,19.02260421,152.27,152.21,12.45526744]
[1749435172530,12.45526744,152.26,152.21,12.45526744]
[1749435172828,6.56733677,152.27,152.21,12.45526744]
[1749435173120,12.45526744,152.26,152.22,6.56943896]
[1749435175306,19.0229998,152.26,152.21,19.02500417]
[1749435175619,12.45526744,152.25,152.21,19.02500417]
[1749435176207,12.45526744,152.26,152.21,19.02500417]
[1749435177421,4.89200006,152.29,152.25,12.45526744]
[1749435177717,25.42608787,152.35,152.28,12.45526744]
[1749435177918,12.97082043,152.35,152.31,12.45526744]
[1749435178127,25.42608787,152.35,152.31,12.45526744]
[1749435178307,4.89200006,152.35,152.32,12.45526744]
[1749435178615,12.45526744,152.36,152.32,12.45526744]
[1749435178821,12.45526744,152.35,152.31,12.45526744]
[1749435179613,19.01924159,152.35,152.31,12.45526744]
[1749435179822,19.01924159,152.35,152.3,12.45526744]
[1749435180005,12.45526744,152.35,152.31,12.45526744]
[1749435180202,19.01915294,152.35,152.31,12.45526744]
[1749435181021,19.01915294,152.35,152.3,12.45526744]
[1749435181324,12.45526744,152.34,152.3,12.45526744]
[1749435181704,6.5638855,152.35,152.31,12.45526744]
[1749435181911,19.01915294,152.35,152.31,12.45526744]
[1749435182403,19.01915294,152.35,152.29,6.70841938]
[1749435182731,19.01915294,152.35,152.31,12.45526744]
[1749435183099,6.5638855,152.35,152.31,12.45526744]
[1749435183295,19.01915294,152.35,152.31,12.45526744]
[1749435183492,19.01882603,152.36,152.32,12.45526744]
[1749435183899,19.01832811,152.37,152.33,12.45526744]
[1749435184417,6.56222553,152.39,152.35,12.45526744]
[1749435184615,6.56222553,152.39,152.32,40.06]
[1749435184616,12.45526744,152.4,152.36,12.45526744]
[1749435184793,12.45526744,152.39,152.35,12.45526744]
[1749435185318,6.56189705,152.4,152.35,12.45526744]
[1749435185494,12.45526744,152.39,152.35,12.45526744]
[1749435186614,12.45526744,152.37,152.31,26.0]
[1749435186922,19.01953158,152.34,152.31,26.0]
[1749435187132,12.45526744,152.33,152.31,26.0]
[1749435187328,12.45526744,152.33,152.29,62.83526744]
[1749435187694,12.45526744,152.33,152.3,26.0]
[1749435187898,12.45526744,152.33,152.29,22.77526744]
[1749435189321,19.01997691,152.33,152.29,22.77526744]
[1749435189538,12.45526744,152.36,152.31,12.45526744]
[1749435189896,12.45526744,152.35,152.31,12.45526744]
[1749435190133,12.45526744,152.35,152.3,12.59742901]
[1749435190599,12.45526744,152.34,152.3,12.59742901]
[1749435190797,6.56297171,152.37,152.31,12.45526744]
[1749435190998,12.45526744,152.35,152.31,12.45526744]
[1749435191806,12.45526744,152.36,152.32,12.45526744]
[1749435192631,19.01823915,152.37,152.33,12.45526744]
[1749435193026,12.45526744,152.38,152.34,12.45526744]
[1749435193230,12.45526744,152.39,152.34,12.45526744]
[1749435193804,12.45526744,152.38,152.34,12.45526744]
[1749435194016,6.56167979,152.4,152.34,12.45526744]
[1749435194314,12.45526744,152.38,152.34,12.45526744]
[1749435198918,12.45526744,152.38,152.34,19.01949273]
[1749435199138,12.45526744,152.39,152.35,12.45526744]
[1749435199448,12.45526744,152.4,152.36,12.45526744]
[1749435199950,12.45526744,152.39,152.35,12.59742901]
[1749435201121,19.01740561,152.39,152.35,12.59742901]
[1749435201321,12.45526744,152.39,152.35,12.59742901]
[1749435203150,12.45526744,152.38,152.34,12.45526744]
[1749435204335,12.45526744,152.38,152.34,0.14216157]
[1749435204532,12.45526744,152.38,152.34,12.59742901]
[1749435205750,19.01783314,152.38,152.34,12.59742901]
[1749435205929,12.45526744,152.36,152.32,26.0]
[1749435206137,12.45526744,152.35,152.31,52.49526744]
[1749435206361,12.45526744,152.35,152.32,26.0]
[1749435206657,12.45526744,152.36,152.32,38.45526744]
[1749435207557,6.5633778,152.37,152.33,12.45526744]
[1749435207861,12.45526744,152.38,152.34,12.45526744]
[1749435208529,19.01780988,152.38,152.34,12.45526744]
[1749435208725,12.45526744,152.38,152.34,19.01952881]
[1749435208948,12.45526744,152.38,152.34,12.59742901]
[1749435209353,12.45526744,152.38,152.34,12.45526744]
[1749435210145,12.45526744,152.38,152.33,19.01995181]
[1749435214367,19.01784486,152.38,152.33,19.01995181]
[1749435214728,12.45526744,152.37,152.33,19.01995181]
[1749435218821,12.45526744,152.37,152.34,0.14216157]
[1749435219029,12.45526744,152.38,152.34,19.16168789]
[1749435219230,6.56227342,152.39,152.34,19.16168789]
[1749435219447,12.45526744,152.38,152.34,19.16168789]
[1749435219756,12.45526744,152.38,152.34,6.70642045]
[1749435220347,12.45526744,152.39,152.35,12.45526744]
[1749435221357,12.45526744,152.39,152.35,19.01874415]
[1749435224663,12.45526744,152.4,152.35,19.01874415]
[1749435224834,12.45526744,152.4,152.36,0.14216157]
[1749435225038,12.45526744,152.4,152.36,12.59742901]
[1749435225238,17.35696989,152.41,152.36,52.63742901]
[1749435226346,12.45526744,152.41,152.37,12.45526744]
[1749435226848,12.45526744,152.41,152.37,19.01808243]
[1749435227040,12.45526744,152.41,152.37,6.56281499]
[1749435227656,19.0165412,152.41,152.36,59.20069566]
[1749435227956,12.45526744,152.41,152.37,12.45526744]
[1749435228256,12.45526744,152.42,152.37,12.45526744]
[1749435228848,4.90234786,152.43,152.39,12.59742901]
[1749435229047,4.90255179,152.44,152.4,12.45526744]
[1749435229261,4.90255179,152.44,152.41,52.49526744]
[1749435229468,152.22793483,152.48,152.41,52.49526744]
[1749435229469,12.45526744,152.46,152.41,52.49526744]
[1749435229636,17.35781923,152.45,152.41,52.49526744]
[1749435230667,17.35781923,152.45,152.41,59.05640531]
[1749435231163,12.45526744,152.45,152.41,59.05640531]
[1749435231542,19.01480791,152.45,152.41,52.49526744]
[1749435232245,19.0144886,152.46,152.41,59.05641462]
[1749435232447,23.91704039,152.46,152.41,59.05641462]
[1749435232655,6.55922116,152.46,152.41,59.05641462]
[1749435232852,6.55922116,152.46,152.42,12.45526744]
[1749435232853,19.0144886,152.46,152.42,12.45526744]
[1749435233356,4.90255179,152.48,152.44,38.45526744]
[1749435233357,12.45526744,152.48,152.44,38.45526744]
[1749435233551,12.45526744,152.45,152.4,6.56151566]
[1749435233784,12.45526744,152.44,152.41,66.02]
[1749435234558,4.89402853,152.47,152.41,66.02]
[1749435234559,12.45526744,152.45,152.41,66.02]
[1749435235364,12.45526744,152.45,152.41,85.03651382]
[1749435237740,12.45526744,152.45,152.41,78.47526744]
[1749435238855,12.45526744,152.44,152.41,66.02]
[1749435241771,19.01530285,152.44,152.41,66.02]
[1749435242066,12.45526744,152.43,152.41,26.0]
[1749435242445,12.45526744,152.44,152.41,26.0]
[1749435243447,22.95533546,152.47,152.41,26.0]
[1749435243656,12.45526744,152.44,152.41,26.0]
[1749435246474,12.45526744,152.45,152.41,26.0]
[1749435247189,12.45526744,152.44,152.41,26.0]
[1749435250381,6.55978931,152.45,152.41,26.0]
[1749435250689,12.45526744,152.44,152.41,26.0]
[1749435254072,6.55866727,152.47,152.41,26.0]
[1749435254380,12.45526744,152.44,152.41,26.0]
[1749435256449,6.55971103,152.45,152.41,38.45526744]
[1749435256655,19.01497847,152.45,152.41,38.45526744]
[1749435256848,6.55971103,152.45,152.41,38.45526744]
[1749435257055,19.01497847,152.45,152.41,38.45526744]
[1749435257674,6.55971103,152.45,152.41,38.45526744]
[1749435257983,19.01497847,152.45,152.41,38.45526744]
[1749435258977,12.45526744,152.44,152.41,26.0]
[1749435260777,12.45526744,152.45,152.41,38.45526744]
[1749435261882,6.55824446,152.48,152.42,12.45526744]
[1749435262081,1.6661,152.49,152.44,12.45526744]
[1749435262282,1.6661,152.49,152.44,19.01497624]
[1749435262283,14.12136744,152.49,152.44,19.01497624]
[1749435262583,12.45526744,152.48,152.44,59.03497624]
[1749435263084,12.45526744,152.48,152.44,46.5797088]
[1749435263256,7.93192608,152.48,152.44,46.5797088]
[1749435263461,8.22400725,152.49,152.44,54.51163488]
[1749435263760,6.0351,152.5,152.44,80.51163488]
[1749435263961,147.7252,152.53,152.47,7.93192608]
[1749435263962,4.89402853,152.52,152.47,7.93192608]
[1749435264162,4.89402853,152.51,152.46,7.93192608]
[1749435264376,4.89402853,152.52,152.46,7.93192608]
[1749435264581,7.93192608,152.5,152.46,7.93192608]
[1749435265384,12.39281836,152.47,152.44,66.02]
[1749435265766,12.39281836,152.45,152.4,17.02371891]
[1749435265970,12.39281836,152.44,152.41,40.0]
[1749435266356,12.39281836,152.45,152.41,40.0]
[1749435266562,12.39281836,152.45,152.41,52.39281836]
[1749435266961,12.39281836,152.45,152.41,58.95386019]
[1749435267164,12.39281836,152.46,152.41,58.95386019]
[1749435267990,12.39281836,152.45,152.41,58.95386019]
[1749435268885,18.95244889,152.45,152.41,40.0]
[1749435269088,12.39281836,152.44,152.41,40.0]
[1749435269289,12.39281836,152.43,152.41,40.0]
[1749435269590,12.39281836,152.42,152.4,10.32]
[1749435269886,4.89402853,152.44,152.38,66.0]
[1749435270189,12.39281836,152.42,152.38,78.39281836]
[1749435270691,12.39281836,152.44,152.4,12.39281836]
[1749435271988,12.39281836,152.45,152.41,18.95385968]
[1749435273291,4.89978011,152.45,152.41,18.95385968]
[1749435273599,17.29259847,152.46,152.42,12.39281836]
[1749435273773,12.39281836,152.46,152.42,12.39281836]
[1749435273972,6.55881184,152.47,152.41,18.95385968]
[1749435274182,12.39281836,152.45,152.41,18.95385968]
[1749435276189,12.39281836,152.46,152.42,12.39281836]
[1749435277283,4.90056195,152.47,152.42,12.39281836]
[1749435277486,12.39281836,152.46,152.42,58.95335267]
[1749435277683,12.39281836,152.45,152.42,46.56053431]
[1749435278068,12.39281836,152.46,152.42,58.95335267]
[1749435278695,8.21452977,152.48,152.43,18.95308515]
[1749435278877,17.29361473,152.47,152.43,18.95308515]
[1749435279075,12.39281836,152.47,152.43,18.95308515]
[1749435281810,12.39281836,152.48,152.43,18.95308515]
[1749435282097,12.39281836,152.48,152.44,12.39281836]
[1749435283077,12.39281836,152.48,152.43,18.95308515]
[1749435283291,4.89946211,152.47,152.43,18.95308515]
[1749435283495,6.55783026,152.49,152.43,18.95308515]
[1749435283680,17.29247263,152.48,152.43,18.95308515]
[1749435283883,12.39281836,152.48,152.43,18.95308515]
[1749435284686,6.55782342,152.49,152.43,18.95308515]
[1749435285002,17.29210819,152.48,152.44,12.39281836]
[1749435285202,12.39281836,152.48,152.44,12.39281836]
[1749435286071,12.39281836,152.48,152.44,6.55986566]
[1749435286275,12.39281836,152.47,152.44,6.55986566]
[1749435287087,17.291852,152.47,152.44,6.55986566]
[1749435287306,12.39281836,152.47,152.44,6.55986566]
[1749435287601,4.89903364,152.47,152.44,6.55986566]
[1749435287781,12.39281836,152.47,152.44,6.55986566]
[1749435288102,17.291852,152.47,152.44,6.55986566]
[1749435288287,4.89903364,152.48,152.44,6.55986566]
[1749435288595,12.39281836,152.48,152.44,6.55986566]
[1749435288803,12.39281836,152.48,152.44,12.39281836]
[1749435289177,4.89936366,152.47,152.43,18.95320673]
[1749435289377,12.39281836,152.48,152.43,18.95320673]
[1749435289599,4.8995093,152.47,152.43,18.95320673]
[1749435289875,12.39281836,152.48,152.43,18.95320673]
[1749435290084,4.89946988,152.47,152.44,12.39281836]
[1749435290300,4.89939445,152.47,152.44,12.39281836]
[1749435290481,12.39281836,152.48,152.44,12.39281836]
[1749435290682,4.89949254,152.47,152.44,12.39281836]
[1749435291001,4.89949254,152.47,152.44,18.95276224]
[1749435292195,12.39281836,152.48,152.44,12.39281836]
[1749435292384,6.55752642,152.5,152.44,12.39281836]
[1749435292582,12.39281836,152.48,152.44,12.39281836]
[1749435293174,4.89891982,152.47,152.44,12.39281836]
[1749435293379,12.39281836,152.48,152.44,18.95271879]
[1749435293580,4.8989508,152.47,152.44,18.95271879]
[1749435293835,12.39281836,152.48,152.44,18.95271879]
[1749435294014,4.89911044,152.47,152.44,18.95271879]
[1749435294195,12.39281836,152.48,152.44,18.95271879]
[1749435294495,4.89926923,152.47,152.44,18.95271879]
[1749435295197,17.29208759,152.48,152.44,18.95271879]
[1749435295406,12.39281836,152.48,152.44,18.95271879]
[1749435296603,4.89955936,152.47,152.44,18.95271879]
[1749435296811,12.39281836,152.48,152.44,18.95271879]
[1749435296982,4.89955936,152.47,152.44,18.95271879]
[1749435297309,12.39281836,152.48,152.44,18.95271879]
[1749435297503,4.89977518,152.47,152.44,18.95271879]
[1749435297692,12.39281836,152.48,152.44,18.95271879]
[1749435297889,4.89977458,152.47,152.44,18.95271879]
[1749435298096,12.39281836,152.48,152.44,18.95271879]
[1749435298304,4.89974536,152.47,152.44,18.95271879]
[1749435298494,12.39281836,152.48,152.44,18.95271879]
[1749435298794,4.89986963,152.47,152.44,18.95271879]
[1749435299001,12.39281836,152.46,152.42,58.95327909]
[1749435299386,12.8337428,152.46,152.42,54.49413506]
[1749435299585,7.93367433,152.46,152.42,54.49413506]
[1749435299891,4.90006847,152.46,152.42,54.49413506]
[1749435300093,14.4924342,152.47,152.43,7.93367433]
[1749435301115,7.93367433,152.48,152.44,7.93367433]
[1749435301339,4.90010494,152.47,152.44,12.39292187]
[1749435301620,12.39292187,152.48,152.44,12.39292187]
[1749435301791,4.9003499,152.47,152.44,12.39292187]
[1749435301992,12.39292187,152.48,152.44,12.39292187]
[1749435302207,4.90048326,152.47,152.44,18.95256344]
[1749435302396,12.39292187,152.48,152.44,18.95256344]
[1749435302604,4.90041318,152.47,152.44,18.95256344]
[1749435302797,12.39292187,152.48,152.44,18.95256344]
[1749435303097,4.90064859,152.47,152.44,18.95256344]